Cogmind - Beta 13 @@@ ROGUE MODE // 2024.04.21 @ 01:52:05 Player: albenzo Result: Destroyed by D-53 Grenadier with Mini Grenade Launcher Performance ------------- Evolutions (0) 0 Regions Visited (4) 800 Robots Destroyed (17) 85 Value Destroyed (330) 330 Prototype IDs (25) 500 Alien Tech Used (0) 0 Bonus (287) 287 TOTAL SCORE: 2002 Bonus ------- Aligned with FarCom 300 Friendly Fire -13 Cogmind --------- Core Integrity 0/250 Matter 199/300 Energy 100/100 System Corruption 0% Temperature Cool (0) Movement Core (200) Ox3 Location -9/Mines Parts ------- > --- POWER (1) -------- (None) > --- PROPULSION (2) --- (None) > --- UTILITY (2) ------ Heat Sink Medium Storage Unit > --- WEAPON (2) ------- (None) > --- INVENTORY (10) --- Large Storage Unit Seismic Detector Targeting Computer Medium Laser Latent Energy Streamer Heavy Particle Cannon Missile Launcher Peak State ------------ > --- POWER ------------ Ion Engine > --- PROPULSION ------- Aluminum Leg Aluminum Leg > --- UTILITY ---------- Medium Storage Unit Light Armor Plating > --- WEAPON ----------- Medium Laser Missile Launcher > --- INVENTORY -------- Ion Engine Aluminum Leg Heat Sink Large Storage Unit Seismic Detector Targeting Computer Medium Laser Medium Laser Latent Energy Streamer Heavy Particle Cannon [Rating: 11] Favorites ----------- Power Ion Engine Engine Ion Engine Propulsion Aluminum Leg Leg Aluminum Leg Utility Medium Storage Unit Device Seismic Detector Storage Medium Storage Unit Protection Light Armor Plating Weapon Medium Laser Energy Gun Medium Laser Energy Cannon Heavy Particle Cannon Launcher Missile Launcher Build | -11 -10 -10 -10 -9 ------- Run | Yrd Mat Min Exi Min Slots Evolved . | . . . . . Power . | . . . . . Propulsion . | . . . . . Utility . | . . . . . Weapon . | . . . . . Parts Attached 26 | 7 3 8 . 8 Power 3 | 1 1 . . 1 Engine 3 | 1 1 . . 1 Core . | . . . . . Reactor . | . . . . . Propulsion 3 | 2 . . . 1 Treads . | . . . . . Leg 3 | 2 . . . 1 Wheel . | . . . . . Hover . | . . . . . Flight . | . . . . . Utility 9 | 2 1 4 . 2 Device 4 | 1 . 2 . 1 Storage 2 | 1 1 . . . Processor . | . . . . . Hackware . | . . . . . Protection 3 | . . 2 . 1 Artifact . | . . . . . Weapon 11 | 2 1 4 . 4 Energy Gun 7 | 2 1 2 . 2 Energy Cannon 1 | . . 1 . . Ballistic Gun . | . . . . . Ballistic Cannon . | . . . . . Launcher 3 | . . 1 . 2 Special Weapon . | . . . . . Impact Weapon . | . . . . . Slashing Weapon . | . . . . . Piercing Weapon . | . . . . . Special Melee Weapon . | . . . . . Unidentified Prototypes . | . . . . . Parts Lost 8 | . . . . 8 Power 2 | . . . . 2 Propulsion 3 | . . . . 3 Utility 1 | . . . . 1 Weapon 2 | . . . . 2 Highest Loss Streak 8 | . . . . 8 To Critical Strikes . | . . . . . Average Slot Usage (%) 99 | . 100 100 100 99 Engine 14 | . 14 14 14 14 Leg 27 | . 28 28 28 27 Device 11 | . 14 13 14 . Storage 14 | . 14 14 14 14 Protection 2 | . . . . 13 Energy Gun 25 | . 28 19 28 27 Energy Cannon 2 | . . 8 . . Naked Turns . | . . . . . Heaviest Build 26 | 12 20 26 20 22 Greatest Support 20 | 20 20 20 20 20 Greatest Overweight (x) 5 | 2 . 1 . 5 Average Overweight (x) . | . . . . . Largest Inventory Capacity 10 | 8 10 10 10 10 Average Capacity 9 | 7 9 10 10 10 Most Carried 10 | 7 10 10 10 10 Average Carried 9 | 4 9 10 9 9 Final Capacity 10 | 8 10 10 10 10 Final Carried 10 | 7 10 10 10 7 Class Distribution -------------------- 100% | Mutant Dominant Class ---------------- Mutant | -10/Materials Mutant | -10/Mines Mutant | -10/Exiles Mutant | -9/Mines Resources | -11 -10 -10 -10 -9 ----------- Run | Yrd Mat Min Exi Min Matter Collected 433 | 229 71 90 . 43 Remotely . | . . . . . Salvage Created 521 | 30 279 147 . 65 Parts 35 | 2 16 13 . 4 Haulers Intercepted 2 | . 2 . . . Recyclers Shooed . | . . . . . Parts Field Recycled . | . . . . . Retrieved Matter . | . . . . . Parts Self-Destructed . | . . . . . Prevented . | . . . . . Kills | -11 -10 -10 -10 -9 ------- Run | Yrd Mat Min Exi Min Combat Hostiles Destroyed 27 | . 3 6 . 18 Guns 5 | . 2 2 . 1 Cannons 2 | . . 2 . . AOE 19 | . . 2 . 17 Classes Destroyed 6 | 1 3 1 . 1 Tunneler 1 | 1 . . . . Hauler 2 | . 2 . . . Watcher 2 | . 2 . . . Swarmer 6 | . . 3 . 3 Grunt 6 | . 3 3 . . Assembled 15 | . . . . 15 Best Kill Streak 15 | 1 2 3 . 15 Combat Bots Only 15 | . 2 3 . 15 Max Kills in Single Turn 3 | 1 1 3 . 3 Gunslinging . | . . . . . Exploded 3 | . . 2 . 3 Melee . | . . . . . Uniques/NPCs Destroyed . | . . . . . Combat | -11 -10 -10 -10 -9 -------- Run | Yrd Mat Min Exi Min Hostile Shots Fired 92 | . 11 11 . 70 Missed 29 | . 3 4 . 22 Damage Taken 1075 | . 90 97 . 888 Core 250 | . 35 8 . 207 Absorbed by Shields . | . . . . . Core Remaining (%) 100 | 100 . . . . Volleys Fired 43 | 5 21 8 . 9 Largest 2 | 2 2 2 . 2 Hottest 125 | 90 100 125 . 100 Shots Fired 78 | 10 42 16 . 10 Gun 66 | 10 42 12 . 2 Cannon 3 | . . 3 . . Launcher 9 | . . 1 . 8 Special . | . . . . . Kinetic . | . . . . . Thermal 69 | 10 42 15 . 2 Explosive 9 | . . 1 . 8 Electromagnetic . | . . . . . Robot Hit Streak 10 | 4 9 9 . 10 Robot Miss Streak 2 | 1 2 2 . 1 Penetration Max . | . . . . . Secondary Targets . | . . . . . Shots Hit Robots 51 | 7 27 11 . 6 Core Hits 50 | 1 10 9 . 30 Critical Kills . | . . . . . Critical Parts Destroyed . | . . . . . Critical Strikes 6 | . 4 2 . . Burn 6 | . 4 2 . . Melee Attacks . | . . . . . Impact . | . . . . . Slashing . | . . . . . Piercing . | . . . . . Sneak Attacks . | . . . . . Combat Hostiles . | . . . . . Follow-up Attacks . | . . . . . Damage Inflicted 1783 | 82 321 274 . 1106 Guns 529 | 82 321 113 . 13 Cannons 75 | . . 75 . . Explosions 1179 | . . 86 . 1093 Melee . | . . . . . Ramming . | . . . . . Kinetic . | . . . . . Thermal 604 | 82 321 188 . 13 Explosive 1179 | . . 86 . 1093 Electromagnetic . | . . . . . Impact . | . . . . . Slashing . | . . . . . Piercing . | . . . . . Highest Corruption . | . . . . . Average Corruption . | . . . . . Corruption Purged . | . . . . . Corruption Blocked . | . . . . . Overload Shots . | . . . . . Overflow Damage 70 | . . . . 70 Projectiles . | . . . . . Explosions 70 | . . . . 70 Melee . | . . . . . Knockbacks . | . . . . . Impact . | . . . . . Kinetic . | . . . . . Secondary . | . . . . . Self-Inflicted Damage 64 | . . 19 . 45 Shots 2 | . . 1 . 1 Rammed . | . . . . . Targets Rammed . | . . . . . Kicked . | . . . . . Crushed . | . . . . . Highest Temperature 292 | 90 292 240 . 49 Average Temperature 87 | 41 109 95 . 17 Received Heat Transfer 158 | . 48 30 . 80 Siege Activations . | . . . . . Robots Corrupted . | . . . . . Combat Hostiles . | . . . . . Parts Fried . | . . . . . Impact Corruptions . | . . . . . Robots Melted 1 | . 1 . . . Combat Hostiles 1 | . 1 . . . Parts Melted 5 | . 5 . . . Heat Transferred 1991 | 211 1151 592 . 37 Parts Sabotaged . | . . . . . Parts Stolen . | . . . . . Parts Stripped . | . . . . . Power Chain Reactions . | . . . . . Alert | -11 -10 -10 -10 -9 ------- Run | Yrd Mat Min Exi Min Peak Influence 101 | 5 101 97 . 98 Initial 3 | . 3 . . . Average 36 | . 26 28 . 82 Maximum Alert Level . | . . . . . Low Security (%) 100 | 100 100 100 . 100 Level 1 . | . . . . . Level 2 . | . . . . . Level 3 . | . . . . . Level 4 . | . . . . . Level 5 . | . . . . . High Security . | . . . . . Max Security . | . . . . . Squads Dispatched 3 | . 2 1 . . Investigation 1 | . . 1 . . Extermination . | . . . . . Reinforcement 2 | . 2 . . . Assault . | . . . . . Garrison . | . . . . . Intercept . | . . . . . Searches Triggered . | . . . . . Construction Impeded . | . . . . . Haulers Reinforced . | . . . . . Active Scanning Responses . | . . . . . Cargo Convoy Interrupts . | . . . . . Stealth | -11 -10 -10 -10 -9 --------- Run | Yrd Mat Min Exi Min Distress Signals 3 | . 3 . . . Communications Jammed . | . . . . . Distress Signals . | . . . . . Times Spotted 38 | . 7 7 . 24 Peak Tracking Total 17 | . 2 3 . 17 Tactical Retreats . | . . . . . Traps | -11 -10 -10 -10 -9 ------- Run | Yrd Mat Min Exi Min Traps Triggered . | . . . . . Indirectly . | . . . . . Trap Hack Attempts . | . . . . . Triggered . | . . . . . Disarmed . | . . . . . Reprogrammed . | . . . . . Reused . | . . . . . Traps Extracted . | . . . . . Installed . | . . . . . Triggered . | . . . . . Machines | -11 -10 -10 -10 -9 ---------- Run | Yrd Mat Min Exi Min Machines Disabled 1 | . . . . 1 Max in Single Turn 1 | . . . . 1 Machines Repaired . | . . . . . Machines Dismantled . | . . . . . Machines Sabotaged . | . . . . . Overloaded Fab Kills . | . . . . . Hacking | -11 -10 -10 -10 -9 --------- Run | Yrd Mat Min Exi Min Machines Accessed 12 | . 9 1 2 . Terminals 7 | . 7 . . . Fabricators . | . . . . . Repair Stations 1 | . 1 . . . Recycling Units 1 | . 1 . . . Scanalyzers . | . . . . . Garrison Access . | . . . . . Total Hacks 22 | . 16 1 5 . Successful 12 | . 6 1 5 . Failed 10 | . 10 . . . Catastrophic 2 | . 2 . . . Database Lockouts . | . . . . . Manual 8 | . 7 . 1 . Terminals 14 | . 14 . . . Fabricators . | . . . . . Repair Stations 1 | . 1 . . . Recycling Units 1 | . 1 . . . Scanalyzers . | . . . . . Garrison Access . | . . . . . Terminal Hacks 10 | . 4 1 5 . Record 4 | . . . 4 . Prototype ID Bank 1 | . 1 . . . Open Door 1 | . . 1 . . Alert Level 1 | . 1 . . . Dispatch Records 1 | . 1 . . . Transport Status 1 | . 1 . . . Derelict Proto ID Bank 1 | . . . 1 . Fabricator Hacks . | . . . . . Repair Station Hacks . | . . . . . Recycling Unit Hacks 1 | . 1 . . . Report Inventory 1 | . 1 . . . Scanalyzer . | . . . . . Garrison Access Hacks . | . . . . . Unauthorized Hacks 1 | . 1 . . . Terminals 1 | . 1 . . . Assimilate 1 | . 1 . . . Fabricators . | . . . . . Repair Stations . | . . . . . Recycling Units . | . . . . . Scanalyzers . | . . . . . Garrison Access . | . . . . . Data Cores Recovered . | . . . . . Used . | . . . . . Hacking Detections 8 | . 8 . . . Full Trace Events . | . . . . . Feedback Events . | . . . . . Feedback Blocked . | . . . . . Robot Schematics Acquired . | . . . . . Robots Built . | . . . . . Authchips . | . . . . . Time . | . . . . . Total Robot Build Rating . | . . . . . Part Schematics Acquired . | . . . . . Parts Built . | . . . . . Authchips . | . . . . . Time . | . . . . . Total Part Build Rating . | . . . . . Parts Repaired . | . . . . . Time . | . . . . . Parts Recycled . | . . . . . Recycled Matter . | . . . . . Retrieved Matter . | . . . . . Retrieved Components . | . . . . . Parts Scanalyzed . | . . . . . Part Schematics Acquired . | . . . . . Parts Damaged . | . . . . . Bothacking | -11 -10 -10 -10 -9 ------------ Run | Yrd Mat Min Exi Min Used RIF Installer . | . . . . . Robots Hacked . | . . . . . Non-combat . | . . . . . Combat . | . . . . . Robot Hacks Applied . | . . . . . Relay Couplers Released . | . . . . . Fabnet Peak Effective % . | . . . . . Robots Rewired . | . . . . . Allies Hacked . | . . . . . Hacks Repelled . | . . . . . Allies | -11 -10 -10 -10 -9 -------- Run | Yrd Mat Min Exi Min Total Allies 3 | . . . . 3 Largest Group 3 | . . . . 3 Highest-Rated Group 40 | . . . . 40 Highest-Rated Ally 16 | . . . . 16 Total Orders . | . . . . . Ally Attacks 6 | . . . . 6 Total Damage 48 | . . . . 48 Kills . | . . . . . Allies Corrupted . | . . . . . Allies Melted . | . . . . . Intel | -11 -10 -10 -10 -9 ------- Run | Yrd Mat Min Exi Min Robot Analysis Total . | . . . . . Derelict Logs Recovered 4 | . . 2 . 2 Drone Launches . | . . . . . Drone Recoveries . | . . . . . Exploration | -11 -10 -10 -10 -9 ------------- Run | Yrd Mat Min Exi Min Turns Passed 3105 | 109 1023 1012 486 475 Spaces Moved 2074 | 67 736 630 404 237 Core 12 | 11 . . . 1 Treads . | . . . . . Legs 2062 | 56 736 630 404 236 Wheels . | . . . . . Hover . | . . . . . Flight . | . . . . . Fastest Speed 50 | 50 120 120 120 120 Average Speed 137 | 111 120 152 120 187 Slowest Speed 300 | 150 120 190 120 300 Overloaded Moves . | . . . . . Propulsion Burnouts . | . . . . . Robots Hopped . | . . . . . Cave-ins Triggered . | . . . . . Exploration Rate (%) 67 | 5 98 98 90 45 Regions Visited 4 Branch Regions 3 Pre-discovered Areas 2 | . . 1 1 . Known Exits Taken . | . . . . . Unknown Exits Taken 4 | 1 1 1 1 . Scrap Searched 4 | . . 2 . 2 Spaces Dug . | . . . . . Terrain Destroyed 67 | . . 7 . 60 Melee . | . . . . . Projectile . | . . . . . AOE 67 | . . 7 . 60 Terrain Rammed . | . . . . . Walls Destroyed . | . . . . . Machines Disabled . | . . . . . Actions | -11 -10 -10 -10 -9 --------- Run | Yrd Mat Min Exi Min Total 2258 | 88 843 666 405 256 Wait 77 | 3 56 18 . . Move 2070 | 66 735 629 403 237 Hop . | . . . . . Pick Up 24 | 7 14 1 1 1 Fast Attach 8 | 7 . 1 . . Attach 3 | . . . . 3 Detach . | . . . . . Swap 15 | . 3 7 . 5 Drop 18 | . 14 2 1 1 Fire 43 | 5 21 8 . 9 Melee . | . . . . . Ram . | . . . . . Kick . | . . . . . Crush . | . . . . . Escape Stasis . | . . . . . Rewire . | . . . . . Trap . | . . . . . Miscellaneous . | . . . . . Route ------- -11/Scrapyard -10/Materials (discovered 4 exits: [*Mat x3] / *Min) -10/Mines (discovered 3 exits: [*Mat x2] / *Exi) -10/Exiles (discovered 2 exits: [*Min x2]) -9/Mines (discovered 1 exit: [*Mat]) History --------- Turn | Location | Event 35 | -11/Scrapyard | Discovered new exit (range 16) 110 | -11/Scrapyard | Entered Materials 160 | -10/Materials | Discovered new exit (range 15) 282 | -10/Materials | Discovered new exit (range 4) 313 | -10/Materials | Build established: Mutant 436 | -10/Materials | Discovered new exit (range 15) 692 | -10/Materials | Discovered new exit (range 5) 1133 | -10/Materials | Entered Mines 1171 | -10/Mines | Discovered new exit (range 7) 1410 | -10/Mines | Discovered new exit (range 10) 1421 | -10/Mines | Met a Derelict shopkeep closing up shop 1555 | -10/Mines | Deemed a non-threat by the Exiles lab entrance 1555 | -10/Mines | Discovered new exit (range 5) 1698 | -10/Mines | Learned location of Zion (-7) 2145 | -10/Mines | Entered Exiles 2161 | -10/Exiles | Discovered new exit (range 15) 2175 | -10/Exiles | Met 8R-AWN 2195 | -10/Exiles | Met EX-HEX 2246 | -10/Exiles | Met EX-BIN 2261 | -10/Exiles | Aligned with FarCom system 2262 | -10/Exiles | Given EX-Vault access code 2291 | -10/Exiles | Opened EX-Vault 2300 | -10/Exiles | Found Latent Energy Streamer 2325 | -10/Exiles | Warned to stay clear of 0b10 Research branches 2400 | -10/Exiles | Met EX-DEC 2424 | -10/Exiles | Visited The Gauntlet 2617 | -10/Exiles | Discovered new exit (range 12) 2631 | -10/Exiles | Left Exiles lab with Latent Energy Streamer 2631 | -10/Exiles | Entered Mines 2737 | -9/Mines | Discovered new exit (range 8) 2831 | -9/Mines | Received a Rocket Launcher from a helpful Derelict 2970 | -9/Mines | Assisted by bots powering up and referring to "LRC-V3" 3047 | -9/Mines | Assembled infested the area 3093 | -9/Mines | Lost 3 allies 3099 | -9/Mines | Core integrity fell below 50% 3102 | -9/Mines | Destroyed 15 combat bots 3102 | -9/Mines | Core integrity fell below 20% 3106 | -9/Mines | Destroyed by D-53 Grenadier with Mini Grenade Launcher Last Messages --------------- 03084_ The unstable cave ceiling collapses. 03084_ U-05 Engineer lays Concrete. 03085_ U-05 Engineer builds a Wall. 03086_ Ion Engine destroyed. 03090_ U-05 Engineer lays Concrete. 03091_ as-88032 destroyed. 03092_ U-05 Engineer lays Concrete. 03096_ U-05 Engineer builds a Wall. 03096_ Med. Laser destroyed. 03098_ The unstable cave ceiling collapses. 03098_ Aluminum Leg destroyed. 03098_ as-65786 destroyed. 03101_ U-05 Engineer lays Concrete. 03103_ The unstable cave ceiling collapses. 03103_ Aluminum Leg destroyed. 03103_ Med. Laser destroyed. 03103_ U-05 Engineer lays Concrete. 03104_ Ion Engine destroyed. 03105_ The unstable cave ceiling collapses. 03105_ U-05 Engineer lays Concrete. Map ----- +----------------------------------------------------+ | | | | | | | | | | | | | | | | | | | | | | | | | | | | | | | | | | | ????????????????????????????????????????????? | | ????????????????????????????????????????????? | | #######??????????????????###????????????????? | | # ##????????????????? ????????????????? | | #?????????????#### ###??????????????? | | #???###??????## ##?????????????? | | ##?## ##??#### #?????????????? | | ### ### #### ## #?????????????? | | ##??## # @ #?????????????? | | ?????## # # #?????????????? | | #?????# # #?????????????? | | ####??# " #?#???????????? | | #### "%" d % #???????????? | | ## ### d = #???????????? | | ##?#### a #???????????? | | ##????# ??????? | | ### ###?????### ?????? | | ##?#####?????????## # ######### ??????? | | #?????????????????##### #####???????????????? | | #?????????????????????###???????????????????? | | #???????????????????????????????????????????? | | #???????????????????????????????????????????? | | #???????????????????????????????????????????? | | #???????????????????????????????????????????? | | ????????????????????????????????????????????? | | ????????????????????????????????????????????? | | ????????????????????????????????????????????? | | ?????????????????????????????????????????? | | ?????????????????????????????????????????? | | ?????????????????????????????????????????? | | ?????????????????????????????????????????? | | ??????????????????????????????????????????? | | ????????????????????????????????????????????? | +----------------------------------------------------+ Best States ------------- Heat Dissipation 35 Energy Generation 10 Energy Capacity 250 Matter Stores 300 Matter Capacity 300 Sight Range 16 Terrain Scan Density 10 Armor Coverage 150 Evasion (%) 55 Item Schematics ----------------- None Robot Schematics ------------------ None Fabricated ------------ Nothing Alien Tech Used ----------------- None Achievements -------------- None Challenges ------------ None Game ------ Seed AngularLargeMatter Manual? 0 Play Time 00:20:32 Cumulative 122.5 hours Start 2024.04.21 @ 01:33:00 End 2024.04.21 @ 01:52:05 Sessions 1 Manual Loads 0 Difficulty Rogue Special Mode None Game No. 103 Rogue 103 Adventurer 0 Explorer 0 Win Type - Total 8 Types 6/0/2/0/0/0/0/0/0 Lore% 65 Gallery% 64 Achievement% 58 Wizard Run 0 Options --------- Layout 0 ASCII 0 Keyboard 1 Movement Vi Keybinds 0 Fullscreen 1 Font 24/Smallcaps Map View 76x50 Zoom Use 0% Tactical HUD 1 Map Filters NONE Filters NONE Steam 1 RUN: 47435684-09f2-413b-b125-40759edeb014